fUST/lending_fUST_20241217
["ID","MTS","AMOUNT","RATE_DAILY","PERIOD"]
[345607299,1734378670894,-500.0,0.00028493,7]
[345607300,1734378670905,-500.0,0.00028493,7]
[345607301,1734378670915,-500.0,0.00028493,7]
[345607302,1734378670928,-2592.99,0.00028493,7]
[345607303,1734378670938,-500.0,0.00028493,7]
[345607304,1734378670947,-506.19097359,0.00028493,7]
[345607305,1734378670959,-500.0,0.00028493,7]
[345607306,1734378670970,-500.0,0.00028493,7]
[345607307,1734378670979,-500.0,0.00028493,7]
[345607308,1734378670991,-500.0,0.00028493,7]
[345607309,1734378671002,-500.0,0.00028493,7]
[345607310,1734378671012,-500.0,0.00028493,7]
[345607311,1734378671021,-500.0,0.00028493,7]
[345607312,1734378671032,-500.0,0.00028493,7]
[345607313,1734378671042,-2180.29,0.00028493,7]
[345607314,1734378671052,-534.76,0.00028493,7]
[345607315,1734378671062,-516.79,0.00028493,7]
[345607316,1734378671072,-500.0,0.00028493,7]
[345607317,1734378671186,-1000.0,0.00028493,2]
[345607318,1734378671221,-2573.99,0.00028493,7]
[345607319,1734378671237,-500.0,0.00028493,7]
[345607320,1734378671248,-500.0,0.00028493,7]
[345607321,1734378671259,-3174.4,0.00028493,7]
[345607322,1734378671269,-500.0,0.00028493,7]
[345607323,1734378671279,-500.0,0.00028493,2]
[345607324,1734378671290,-576.51,0.00028493,7]
[345607325,1734378671301,-500.0,0.00028493,7]
[345607326,1734378671312,-500.0,0.00028493,7]
[345607327,1734378671323,-2345.15,0.00028493,7]
[345607328,1734378671334,-578.76,0.00028493,7]
[345607329,1734378671345,-877.05,0.00028493,7]
[345607330,1734378671355,-500.0,0.00028493,7]
[345607331,1734378671366,-480.90798947,0.00028493,7]
[345607332,1734378671376,-605.07298358,0.00028493,7]
[345607333,1734378671386,-2205.48,0.00028493,7]
[345607334,1734378671395,-500.0,0.00028493,7]
[345607335,1734378671406,-500.0,0.00028493,7]
[345607336,1734378671417,-1402.79,0.00028493,7]
[345607337,1734378671426,-448.29548376,0.00028493,7]
[345607338,1734378671436,-1330.53,0.00028493,7]
[345607339,1734378671446,-543.93,0.00028493,7]
[345607340,1734378671456,-500.0,0.00028493,2]
[345607341,1734378671467,-500.0,0.00028493,7]
[345607342,1734378671476,-500.0,0.00028493,7]
[345607343,1734378671487,-626.50913807,0.00028493,7]
[345607344,1734378671497,-607.9215349,0.00028493,7]
[345607345,1734378671507,-500.0,0.00028493,7]
[345607346,1734378671517,-500.0,0.00028493,7]
[345607347,1734378671528,-5085.84,0.00028493,7]
[345607348,1734378671537,-514.4671532,0.00028493,7]
[345607349,1734378671547,-500.0,0.00028493,7]
[345607350,1734378671557,-500.0,0.00028493,7]
[345607351,1734378671567,-500.0,0.00028493,7]
[345607352,1734378671577,-777.74,0.00028493,7]
[345607353,1734378671591,-500.0,0.00028493,7]
[345607354,1734378671606,-773.31,0.00028493,7]
[345607355,1734378671616,-500.0,0.00028493,7]
[345607356,1734378671626,-500.0,0.00028493,7]
[345607357,1734378671636,-500.0,0.00028493,7]
[345607358,1734378671647,-500.0,0.00028493,7]
[345607359,1734378671658,-196.92877445,0.00028493,7]
[345607360,1734378671668,-9195.94,0.00028493,7]
[345607361,1734378671678,-181.98229739,0.00028493,7]
[345607362,1734378671688,-500.0,0.00028493,7]
[345607363,1734378671698,-500.0,0.00028493,7]
[345607364,1734378671708,-500.0,0.00028493,7]
[345607365,1734378671720,-500.0,0.00028493,7]
[345607366,1734378671736,-500.0,0.00028493,7]
[345607367,1734378671752,-500.0,0.00028493,7]
[345607368,1734378671781,-398.38738253,0.00028493,7]
[345607369,1734378671791,-500.0,0.00028493,7]
[345607370,1734378671802,-500.0,0.00028493,7]
[345607371,1734378671812,-500.0,0.00028493,7]
[345607372,1734378671821,-500.0,0.00028493,7]
[345607373,1734378671831,-500.0,0.00028493,7]
[345607374,1734378671843,-7158.8,0.00028493,7]
[345607375,1734378671852,-500.0,0.00028493,7]
[345607376,1734378671862,-248.72891413,0.00028493,7]
[345607377,1734378671871,-500.0,0.00028493,7]
[345607378,1734378671881,-500.0,0.00028493,7]
[345607379,1734378671892,-500.0,0.00028493,7]
[345607380,1734378671903,-500.0,0.00028493,7]
[345607381,1734378671912,-500.0,0.00028493,7]
[345607382,1734378671922,-494.939727,0.00028493,7]
[345607383,1734378671934,-500.0,0.00028493,7]
[345607384,1734378671944,-500.0,0.00028493,7]
[345607385,1734378671954,-500.0,0.00028493,7]
[345607386,1734378671966,-500.0,0.00028493,7]
[345607387,1734378671978,-200.0,0.00028493,7]
[345607388,1734378671988,-517.10630462,0.00028493,7]
[345607389,1734378671998,-500.0,0.00028493,7]
[345607390,1734378672009,-1793.9,0.00028493,7]
[345607391,1734378672019,-500.0,0.00028493,7]
[345607392,1734378672029,-492.98391644,0.00028493,7]
[345607393,1734378672039,-500.0,0.00028493,7]
[345607394,1734378672048,-616.92,0.00028493,7]
[345607395,1734378672059,-802.84,0.00028493,7]
[345607396,1734378672068,-260.87221403,0.00028493,7]
[345607397,1734378672079,-1507.94,0.00028493,7]
[345607398,1734378672090,-1682.8,0.00028493,7]
[345607399,1734378672100,-500.0,0.00028493,7]
[345607400,1734378672110,-500.0,0.00028493,7]
[345607401,1734378672120,-500.0,0.00028493,7]
[345607402,1734378672129,-9729.37,0.00028493,7]
[345607403,1734378672139,-1060.98,0.00028493,7]
[345607404,1734378672149,-509.3770915,0.00028493,7]
[345607405,1734378672159,-500.0,0.00028493,7]
[345607406,1734378672169,-14925.36,0.00028493,7]
[345607407,1734378672179,-500.0,0.00028493,7]
[345607408,1734378672189,-472.54972934,0.00028493,7]
[345607409,1734378672199,-159.99649547,0.00028493,7]
[345607410,1734378672209,-500.0,0.00028493,7]
[345607411,1734378672219,-500.0,0.00028493,7]
[345607412,1734378672228,-500.0,0.00028493,7]
[345607413,1734378672238,-500.0,0.00028493,7]
[345607414,1734378672248,-500.0,0.00028493,7]
[345607415,1734378672258,-500.0,0.00028493,7]
[345607416,1734378672268,-500.0,0.00028493,7]
[345607417,1734378672279,-2344.08,0.00028493,7]
[345607418,1734378672289,-500.0,0.00028493,7]
[345607419,1734378672298,-1661.08,0.00028493,7]
[345607420,1734378672308,-500.0,0.00028493,7]
[345607421,1734378672318,-500.0,0.00028493,7]
[345607422,1734378672328,-500.0,0.00028493,7]
[345607423,1734378672340,-595.17,0.00028493,7]
[345607424,1734378672350,-500.0,0.00028493,7]
[345607425,1734378672360,-259.36524562,0.00028493,7]
[345607426,1734378672369,-3399.59,0.00028493,5]
[345607427,1734378672379,-527.23,0.00028493,7]
[345607428,1734378672389,-500.0,0.00028493,7]
[345607429,1734378672399,-566.2,0.00028493,7]
[345607430,1734378672409,-500.0,0.00028493,7]
[345607431,1734378672418,-4636.3,0.00028493,7]
[345607432,1734378672428,-500.0,0.00028493,7]
[345607433,1734378672438,-500.0,0.00028493,7]
[345607434,1734378672447,-45939.37,0.00028493,7]
[345607435,1734378672457,-500.0,0.00028493,7]
[345607436,1734378672467,-500.0,0.00028493,7]
[345607437,1734378672478,-500.0,0.00028493,7]
[345607438,1734378672487,-557.94543552,0.00028493,7]
[345607439,1734378672497,-745.37,0.00028493,7]
[345607440,1734378672507,-2498.22,0.00028493,7]
[345607441,1734378672517,-500.0,0.00028493,7]
[345607442,1734378672527,-500.0,0.00028493,2]
[345607443,1734378672537,-500.0,0.0002856,30]
[345607444,1734378672547,-2100.0,0.0002856,30]
[345607445,1734378672556,-683.11814125,0.0002856,30]
[345607446,1734378672565,-2100.0,0.0002856,30]
[345607447,1734378672575,-2100.0,0.0002856,30]
[345607448,1734378672586,-2100.0,0.0002856,30]
[345607449,1734378672596,-2100.0,0.0002856,30]
[345607450,1734378672606,-2100.0,0.0002856,30]
[345607451,1734378672616,-2100.0,0.0002856,30]
[345607452,1734378672626,-2100.0,0.0002856,30]
[345607453,1734378672636,-2100.0,0.0002856,30]
[345607454,1734378672646,-2100.0,0.0002856,30]
[345607455,1734378672655,-2100.0,0.0002856,30]
[345607456,1734378672665,-2100.0,0.0002856,30]
[345607457,1734378672675,-2100.0,0.0002856,30]
[345607458,1734378672684,-2100.0,0.0002856,30]
[345607459,1734378672694,-2100.0,0.0002856,30]
[345607460,1734378672703,-2100.0,0.0002856,30]
[345607461,1734378672713,-2100.0,0.0002856,30]
[345607462,1734378672722,-2100.0,0.0002856,30]
[345607463,1734378672732,-500.0,0.0002856,30]
[345607464,1734378672742,-2100.0,0.0002856,30]
[345607465,1734378672752,-500.0,0.0002856,30]
[345607466,1734378672762,-2100.0,0.0002856,30]
[345607467,1734378672771,-500.0,0.0002856,30]
[345607468,1734378672781,-2100.0,0.0002856,30]
[345607469,1734378672791,-500.0,0.0002856,30]
[345607470,1734378672800,-2100.0,0.0002856,30]
[345607471,1734378672810,-507.65780366,0.0002856,30]
[345607472,1734378672819,-2100.0,0.0002856,30]
[345607473,1734378672828,-2100.0,0.0002856,30]
[345607474,1734378672840,-2100.0,0.0002856,30]
[345607475,1734378672849,-2100.0,0.0002856,30]
[345607476,1734378672859,-2100.0,0.0002856,30]
[345607477,1734378672868,-3600.0,0.0002856,30]
[345607478,1734378672878,-1100.0,0.0002856,30]
[345607479,1734378672888,-1100.0,0.0002856,30]
[345607480,1734378672897,-500.0,0.0002856,30]
[345607481,1734378672907,-1100.0,0.0002856,30]
[345607482,1734378672916,-500.0,0.0002856,30]
[345607483,1734378672930,-500.0,0.0002856,30]
[345607484,1734378672939,-1100.0,0.0002856,30]
[345607485,1734378672949,-1100.0,0.0002856,30]
[345607486,1734378672959,-600.0,0.0002856,30]
[345607487,1734378672970,-1100.0,0.0002856,30]
[345607488,1734378672980,-600.0,0.0002856,30]
[345607489,1734378672990,-1100.0,0.0002856,30]
[345607490,1734378673000,-600.0,0.0002856,30]
[345607491,1734378673011,-1100.0,0.0002856,30]
[345607492,1734378673022,-500.0,0.0002856,30]
[345607493,1734378673032,-600.0,0.0002856,30]
[345607494,1734378673042,-1100.0,0.0002856,30]
[345607495,1734378673051,-1100.0,0.0002856,30]
[345607496,1734378673061,-600.0,0.0002856,30]
[345607497,1734378673071,-1100.0,0.0002856,30]
[345607498,1734378673081,-600.0,0.0002856,30]
[345607499,1734378673091,-1100.0,0.0002856,30]
[345607500,1734378673101,-600.0,0.0002856,30]
[345607501,1734378673111,-1100.0,0.0002856,30]
[345607502,1734378673120,-600.0,0.0002856,30]
[345607503,1734378673130,-600.0,0.0002856,30]
[345607504,1734378673140,-1100.0,0.0002856,30]
[345607505,1734378673150,-600.0,0.0002856,30]
[345607506,1734378673159,-1100.0,0.0002856,30]
[345607507,1734378673169,-999.93931507,0.0002856,30]
[345607508,1734378673179,-600.0,0.0002856,30]
[345607509,1734378673189,-1100.0,0.0002856,30]
[345607510,1734378673198,-600.0,0.0002856,30]
[345607511,1734378673208,-1100.0,0.0002856,30]
[345607512,1734378673217,-600.0,0.0002856,30]
[345607513,1734378673227,-1100.0,0.0002856,30]
[345607514,1734378673237,-1100.0,0.0002856,30]
[345607515,1734378673247,-600.0,0.0002856,30]
[345607516,1734378673257,-1100.0,0.0002856,30]
[345607517,1734378673266,-600.0,0.0002856,30]
[345607518,1734378673276,-1100.0,0.0002856,30]
[345607519,1734378673285,-600.0,0.0002856,30]
[345607520,1734378673295,-1100.0,0.0002856,30]
[345607521,1734378673305,-600.0,0.0002856,30]
[345607522,1734378673315,-1100.0,0.0002856,30]
[345607523,1734378673324,-1100.0,0.0002856,30]
[345607524,1734378673334,-600.0,0.0002856,30]
[345607525,1734378673344,-1100.0,0.0002856,30]
[345607526,1734378673354,-600.0,0.0002856,30]
[345607527,1734378673364,-1100.0,0.0002856,30]
[345607528,1734378673373,-600.0,0.0002856,30]
[345607529,1734378673383,-1900.0,0.0002856,30]
[345607530,1734378673393,-600.0,0.0002856,30]
[345607531,1734378673402,-600.0,0.0002856,30]
[345607532,1734378673412,-600.0,0.0002856,30]
[345607533,1734378673421,-600.0,0.0002856,30]
[345607534,1734378673431,-600.0,0.0002856,30]
[345607535,1734378673440,-600.0,0.0002856,30]
[345607536,1734378673449,-782.14940024,0.0002856,30]
[345607537,1734378673460,-600.0,0.0002856,30]
[345607538,1734378673470,-600.0,0.0002856,30]
[345607539,1734378673481,-600.0,0.0002856,30]
[345607540,1734378673492,-600.0,0.0002856,30]
[345607541,1734378673501,-600.0,0.0002856,30]
[345607542,1734378673511,-600.0,0.0002856,30]
[345607543,1734378673522,-600.0,0.0002856,30]
[345607544,1734378673532,-600.0,0.0002856,30]
[345607545,1734378673542,-600.0,0.0002856,30]
[345607546,1734378673552,-600.0,0.0002856,30]
[345607547,1734378673561,-600.0,0.0002856,30]
[345607548,1734378673571,-600.0,0.0002856,30]
[345607549,1734378673581,-600.0,0.0002856,30]
[345607550,1734378673592,-600.0,0.0002856,30]
[345607551,1734378673602,-600.0,0.0002856,30]
[345607552,1734378673612,-600.0,0.0002856,30]
[345607553,1734378673622,-600.0,0.0002856,30]
[345607554,1734378673632,-600.0,0.0002856,30]
[345607555,1734378673641,-600.0,0.0002856,30]
[345607556,1734378673651,-600.0,0.0002856,30]
[345607557,1734378673661,-600.0,0.0002856,30]
[345607558,1734378673672,-600.0,0.0002856,30]
[345607559,1734378673682,-600.0,0.0002856,30]
[345607560,1734378673691,-600.0,0.0002856,30]
[345607561,1734378673701,-600.0,0.0002856,30]
[345607562,1734378673711,-600.0,0.0002856,30]
[345607563,1734378673720,-782.14940024,0.0002856,30]
[345607564,1734378673730,-500.0,0.0002856,30]
[345607565,1734378673740,-500.0,0.0002856,30]
[345607566,1734378673886,-500.0,0.0002856,30]
[345607567,1734378673897,-835.70119952,0.0002856,30]
[345607568,1734378673906,-212.32053271,0.00028575,2]
[345607569,1734378673916,-882.24887576,0.00028594,2]
[345607570,1734378673929,-600.0,0.00028602,2]
[345607571,1734378673940,-262.398807,0.00028612,2]
[345607572,1734378673950,-151.0,0.00028637,7]
[345607573,1734378673960,-2500.0,0.00028668,3]
[345607574,1734378673972,-2500.0,0.00028676,3]
[345607575,1734378673982,-2500.0,0.00028685,3]
[345607576,1734378673992,-2500.0,0.00028694,3]
[345607577,1734378674003,-2023.76236869,0.00028694,3]
[345607578,1734378674013,-10445.75867062,0.00028696,2]
[345607579,1734378674023,-212.32053271,0.00028712,2]
[345607580,1734378674033,-165.69,0.00028759,7]
[345607581,1734378674043,-500.0,0.00028759,7]
[345607582,1734378674053,-500.0,0.00028759,7]
[345607583,1734378674063,-500.0,0.00028759,7]
[345607584,1734378674073,-500.0,0.00028759,7]
[345607585,1734378674082,-500.0,0.00028759,7]
[345607586,1734378674094,-500.0,0.00028759,7]
[345607587,1734378674103,-500.0,0.00028759,7]
[345607588,1734378674113,-500.0,0.00028759,7]
[345607589,1734378674123,-500.0,0.00028759,7]
[345607590,1734378674132,-500.0,0.00028759,7]
[345607591,1734378674142,-500.0,0.00028759,7]
[345607592,1734378674152,-559.67,0.00028759,7]
[345607593,1734378674161,-500.0,0.00028767,7]
[345607594,1734378674171,-500.0,0.00028767,7]
[345607595,1734378674180,-201.54714631,0.00028767,7]
[345607596,1734378674190,-500.0,0.00028767,7]
[345607597,1734378674200,-605.19,0.00028767,7]
[345607598,1734378674210,-609.46897635,0.00028767,7]
[345607599,1734378674219,-500.0,0.00028767,7]
[345607600,1734378674229,-473.36676829,0.00028767,7]
[345607601,1734378674239,-510.0,0.00028767,7]
[345607602,1734378674250,-500.0,0.00028767,7]
[345607603,1734378674259,-426.62897044,0.00028767,7]
[345607604,1734378674269,-500.0,0.00028767,7]
[345607605,1734378674279,-500.0,0.00028767,7]
[345607606,1734378674289,-500.0,0.00028767,7]
[345607607,1734378674299,-500.0,0.00028767,2]
[345607608,1734378674308,-374.16031504,0.00028767,7]
[345607609,1734378674318,-500.0,0.00028767,7]
[345607610,1734378674327,-500.0,0.00028767,7]
[345607611,1734378674341,-500.0,0.00028767,7]
[345607612,1734378674350,-500.0,0.00028767,7]
[345607613,1734378674360,-500.0,0.00028767,7]
[345607614,1734378674371,-500.0,0.00028767,7]
[345607615,1734378674380,-508.1181696,0.00028767,7]
[345607616,1734378674390,-500.0,0.00028767,7]
[345607617,1734378674399,-506.19223073,0.00028767,7]
[345607618,1734378674409,-696.51,0.00028767,7]
[345607619,1734378674418,-500.0,0.00028767,7]
[345607620,1734378674428,-500.0,0.00028767,7]
[345607621,1734378674438,-500.0,0.00028767,7]
[345607622,1734378674447,-500.0,0.00028767,7]
[345607623,1734378674457,-500.0,0.00028767,7]
[345607624,1734378674467,-500.0,0.00028767,7]
[345607625,1734378674476,-920.62,0.00028767,7]
[345607626,1734378674486,-500.0,0.00028767,7]
[345607627,1734378674495,-500.0,0.00028767,7]
[345607628,1734378674506,-533.8075856,0.00028767,7]
[345607629,1734378674515,-502.63085816,0.00028767,7]
[345607630,1734378674526,-500.0,0.00028767,7]
[345607631,1734378674535,-502.51580994,0.00028767,7]
[345607632,1734378674545,-2138.97,0.00028767,7]
[345607633,1734378674556,-500.0,0.00028767,7]
[345607634,1734378674568,-500.0,0.00028767,7]
[345607635,1734378674579,-691.22,0.00028767,7]
[345607636,1734378674593,-426.97750647,0.00028767,7]
[345607637,1734378674603,-642.02,0.00028767,7]
[345607638,1734378674614,-500.0,0.00028767,7]
[345607639,1734378674623,-500.0,0.00028767,7]
[345607640,1734378674633,-500.0,0.00028767,7]
[345607641,1734378674643,-500.0,0.00028767,7]
[345607642,1734378674653,-500.0,0.00028767,7]
[345607643,1734378674662,-500.0,0.00028767,7]
[345607644,1734378674672,-500.0,0.00028767,7]
[345607645,1734378674682,-500.0,0.00028767,7]
[345607646,1734378674692,-539.20503671,0.00028767,7]
[345607647,1734378674702,-500.0,0.00028767,7]
[345607648,1734378674711,-500.0,0.00028767,7]
[345607649,1734378674721,-500.0,0.00028767,7]
[345607650,1734378674731,-500.0,0.00028767,7]
[345607651,1734378674741,-500.0,0.00028767,7]
[345607652,1734378674751,-193.8090694,0.00028767,7]
[345607653,1734378674760,-500.0,0.00028767,7]
[345607654,1734378674771,-504.77057333,0.00028767,7]
[345607655,1734378674781,-500.0,0.00028767,7]
[345607656,1734378674790,-500.0,0.00028767,7]
[345607657,1734378674800,-500.0,0.00028767,7]
[345607658,1734378674810,-500.0,0.00028767,7]
[345607659,1734378674819,-500.0,0.00028767,7]
[345607660,1734378674828,-1284.31,0.00028767,7]
[345607661,1734378674842,-500.0,0.00028767,9]
[345607662,1734378674852,-500.0,0.00028767,7]
[345607663,1734378674862,-500.0,0.00028767,7]
[345607664,1734378674872,-500.0,0.00028767,7]
[345607665,1734378674882,-505.64751995,0.00028767,7]
[345607666,1734378674892,-500.0,0.00028767,7]
[345607667,1734378674901,-519.72591263,0.00028767,7]
[345607668,1734378674911,-1055.83,0.00028767,7]
[345607669,1734378674922,-500.0,0.00028767,7]
[345607670,1734378674934,-500.0,0.00028767,7]
[345607671,1734378674943,-607.21,0.00028767,7]
[345607672,1734378674953,-335.07027451,0.00028767,7]
[345607673,1734378674962,-500.0,0.00028767,7]
[345607674,1734378674974,-500.0,0.00028767,7]
[345607675,1734378674984,-500.0,0.00028767,7]
[345607676,1734378674993,-1776.96,0.00028767,7]
[345607677,1734378675006,-193.19130187,0.00028767,7]
[345607678,1734378675016,-767.75,0.00028767,7]
[345607679,1734378675026,-500.0,0.00028767,7]
[345607680,1734378675035,-500.0,0.00028767,7]
[345607681,1734378675045,-168.0,0.00028767,7]
[345607682,1734378675056,-537.64131279,0.00028767,7]
[345607683,1734378675067,-500.0,0.00028767,7]
[345607684,1734378675077,-271.07121634,0.00028767,7]
[345607685,1734378675088,-507.99767355,0.00028767,7]
[345607686,1734378675098,-1488.28,0.00028767,7]
[345607687,1734378675108,-500.0,0.00028767,7]
[345607688,1734378675117,-646.01574264,0.00028767,7]
[345607689,1734378675127,-500.0,0.00028767,7]
[345607690,1734378675136,-500.0,0.00028767,7]
[345607691,1734378675146,-777.35,0.00028767,7]
[345607692,1734378675156,-500.0,0.00028767,7]
[345607693,1734378675165,-2178.24,0.00028767,7]
[345607694,1734378675174,-509.8362244,0.00028767,7]
[345607695,1734378675185,-1855.71,0.00028767,2]
[345607696,1734378675195,-500.0,0.00028767,7]
[345607697,1734378675205,-500.0,0.00028767,7]
[345607698,1734378675214,-500.0,0.00028767,7]
[345607699,1734378675224,-560.05,0.00028767,7]
[345607700,1734378675234,-500.0,0.00028767,2]
[345607701,1734378675243,-500.0,0.00028767,7]
[345607702,1734378675252,-500.0,0.00028767,7]
[345607703,1734378675261,-578.89,0.00028767,7]
[345607704,1734378675271,-500.0,0.00028767,7]
[345607705,1734378675281,-500.0,0.00028767,7]
[345607706,1734378675291,-500.0,0.00028767,7]
[345607707,1734378675301,-570.95,0.00028767,7]
[345607708,1734378675311,-500.0,0.00028767,7]
[345607709,1734378675321,-500.0,0.00028767,7]
[345607710,1734378675331,-500.0,0.00028767,7]
[345607711,1734378675344,-1146.06,0.00028767,7]
[345607712,1734378675355,-811.7,0.00028767,7]
[345607713,1734378675366,-385.31930586,0.00028767,7]
[345607714,1734378675376,-500.0,0.00028767,7]
[345607715,1734378675386,-500.0,0.00028767,7]
[345607716,1734378675396,-500.0,0.00028767,7]
[345607717,1734378675406,-505.19491867,0.00028767,7]
[345607718,1734378675417,-500.0,0.00028767,7]
[345607719,1734378675426,-500.0,0.00028767,7]
[345607720,1734378675436,-2592.99,0.00028767,7]
[345607721,1734378675446,-500.0,0.00028767,7]
[345607722,1734378675456,-500.0,0.00028767,7]
[345607723,1734378675466,-500.0,0.00028767,7]
[345607724,1734378675476,-500.0,0.00028767,7]
[345607725,1734378675487,-500.0,0.00028767,7]
[345607726,1734378675496,-500.0,0.00028767,7]
[345607727,1734378675507,-500.0,0.00028767,7]
[345607728,1734378675517,-500.0,0.00028767,7]
[345607729,1734378675526,-500.0,0.00028767,7]
[345607730,1734378675536,-2180.29,0.00028767,7]
[345607731,1734378675547,-534.76,0.00028767,7]
[345607732,1734378675557,-516.79,0.00028767,7]
[345607733,1734378675566,-500.0,0.00028767,7]
[345607734,1734378675576,-1000.0,0.00028767,2]
[345607735,1734378675588,-2573.99,0.00028767,7]
[345607736,1734378675598,-230.61666681,0.00028767,7]
[345607737,1734378675607,-500.0,0.00028767,7]
[345607738,1734378675617,-3174.4,0.00028767,7]
[345607739,1734378675626,-500.0,0.00028767,7]
[345607740,1734378675636,-500.0,0.00028767,2]
[345607741,1734378675645,-576.51,0.00028767,7]
[345607742,1734378675654,-500.0,0.00028767,7]
[345607743,1734378675664,-2345.15,0.00028767,7]
[345607744,1734378675674,-578.76,0.00028767,7]
[345607745,1734378675683,-877.05,0.00028767,7]
[345607746,1734378675693,-2205.48,0.00028767,7]
[345607747,1734378675702,-500.0,0.00028767,7]
[345607748,1734378675712,-500.0,0.00028767,7]
[345607749,1734378675722,-1402.79,0.00028767,7]
[345607750,1734378675732,-1330.53,0.00028767,7]
[345607751,1734378675742,-543.93,0.00028767,7]
[345607752,1734378675752,-500.0,0.00028767,2]
[345607753,1734378675762,-500.0,0.00028767,7]
[345607754,1734378675772,-500.0,0.00028767,7]
[345607755,1734378675782,-500.0,0.00028767,7]
[345607756,1734378675792,-5085.84,0.00028767,7]
[345607757,1734378675802,-500.0,0.00028767,7]
[345607758,1734378675812,-500.0,0.00028767,7]
[345607759,1734378675822,-500.0,0.00028767,7]
[345607760,1734378675831,-777.74,0.00028767,7]
[345607761,1734378675844,-500.0,0.00028767,7]
[345607762,1734378675854,-773.31,0.00028767,7]
[345607763,1734378675864,-500.0,0.00028767,7]
[345607764,1734378675873,-500.0,0.00028767,7]
[345607765,1734378675883,-500.0,0.00028767,7]
[345607766,1734378675893,-500.0,0.00028767,7]
[345607767,1734378675902,-9195.94,0.00028767,7]
[345607768,1734378675912,-256.00930686,0.00028767,7]
[345607769,1734378675922,-283.31209699,0.00028767,7]
[345607770,1734378675934,-500.0,0.00028767,7]
[345607771,1734378675944,-500.0,0.00028767,7]
[345607772,1734378675953,-500.0,0.00028767,7]
[345607773,1734378675963,-500.0,0.00028767,7]
[345607774,1734378675973,-500.0,0.00028767,7]
[345607775,1734378675982,-500.0,0.00028767,7]
[345607776,1734378675992,-500.0,0.00028767,7]
[345607777,1734378676002,-299.00017533,0.00028767,7]
[345607778,1734378676012,-7158.8,0.00028767,7]
[345607779,1734378676021,-500.0,0.00028767,7]
[345607780,1734378676031,-500.0,0.00028767,7]
[345607781,1734378676040,-500.0,0.00028767,7]
[345607782,1734378676048,-500.0,0.00028767,7]
[345607783,1734378676058,-500.0,0.00028767,7]
[345607784,1734378676067,-500.0,0.00028767,7]
[345607785,1734378676076,-506.95689041,0.00028767,7]
[345607786,1734378676088,-500.0,0.00028767,7]
[345607787,1734378676099,-500.0,0.00028767,7]
[345607788,1734378676109,-500.0,0.00028767,7]
[345607789,1734378676120,-210.97103102,0.00028767,7]
[345607790,1734378676130,-500.0,0.00028767,7]
[345607791,1734378676140,-1793.9,0.00028767,7]
[345607792,1734378676150,-500.0,0.00028767,7]
[345607793,1734378676161,-500.0,0.00028767,7]
[345607794,1734378676170,-616.92,0.00028767,7]
[345607795,1734378676179,-802.84,0.00028767,7]
[345607796,1734378676187,-1507.94,0.00028767,7]
[345607797,1734378676194,-1682.8,0.00028767,7]
[345607798,1734378676202,-500.0,0.00028767,7]